bitfinex/quotes_SOLUSD_20240708
["timestamp","ask_amount","ask_price","bid_price","bid_amount"]
[1720428321248,0.1,139.29,139.17,15.0]
[1720428322162,0.1,139.29,139.16,21.3179]
[1720428322752,100.0,139.28,139.16,21.3179]
[1720428323066,20.0,139.27,139.16,21.3179]
[1720428323260,20.0,139.27,139.11,6.6506]
[1720428323261,145.17,139.26,139.11,6.6506]
[1720428323465,20.0,139.25,139.11,6.6506]
[1720428323765,45.17,139.24,139.11,6.6506]
[1720428323967,20.0,139.23,139.11,6.6506]
[1720428324168,45.17,139.22,139.11,6.6506]
[1720428324472,20.0,139.21,139.11,6.6506]
[1720428324768,0.17,139.2,139.11,6.6506]
[1720428324973,45.17,139.2,139.11,6.6506]
[1720428325266,20.0,139.19,139.11,6.6506]
[1720428325580,0.17,139.18,139.11,6.6506]
[1720428325763,0.17,139.2,139.11,6.6506]
[1720428326678,100.0,139.24,139.11,6.6506]
[1720428327676,43.21,139.22,139.02,6.4515]
[1720428327874,100.0,139.21,139.02,6.4515]
[1720428328077,100.0,139.19,139.05,15.0]
[1720428328285,65.17,139.18,139.05,15.0]
[1720428328452,0.17,139.18,139.05,15.0]
[1720428328655,20.0,139.2,139.05,15.0]
[1720428329275,43.21,139.22,139.07,15.0]
[1720428329456,20.0,139.21,139.05,15.0]
[1720428329857,45.17,139.2,139.05,15.0]
[1720428330078,20.0,139.19,139.05,15.0]
[1720428330281,0.17,139.18,139.05,15.0]
[1720428330679,45.17,139.18,139.05,15.0]
[1720428332586,100.0,139.28,139.06,15.031]
[1720428332761,100.0,139.25,139.06,30.031]
[1720428333889,100.0,139.25,139.07,20.0]
[1720428334483,15.0,139.26,139.08,6.5293]
[1720428334667,100.0,139.23,139.08,6.5293]
[1720428334871,20.0,139.22,139.08,6.5293]
[1720428335857,120.0,139.22,139.08,6.5293]
[1720428336074,20.0,139.22,139.08,6.5293]
[1720428336292,20.0,139.23,139.08,6.5293]
[1720428336589,100.0,139.19,139.08,6.5293]
[1720428336764,65.17,139.18,139.08,6.5293]
[1720428338866,0.17,139.18,139.08,6.5293]
[1720428339792,100.0,139.21,139.08,6.5293]
[1720428340203,20.0,139.2,139.08,6.5293]
[1720428340909,100.0,139.21,139.08,21.5293]
[1720428341696,100.0,139.21,139.08,6.5293]
[1720428342206,0.17,139.2,139.08,6.5293]
[1720428342678,100.0,139.21,139.08,6.5293]
[1720428343812,0.17,139.2,139.08,6.5293]
[1720428345907,100.0,139.21,139.08,6.5293]
[1720428346287,20.86758828,139.25,139.08,6.5293]
[1720428346499,20.0,139.24,139.08,6.5293]
[1720428346804,100.0,139.22,139.08,6.5293]
[1720428346971,20.0,139.21,139.08,6.5293]
[1720428347401,0.17,139.2,139.08,6.5293]
[1720428348872,20.0,139.23,139.08,6.5293]
[1720428349096,100.0,139.24,139.08,6.5293]
[1720428349408,49.02078851,139.26,139.09,20.0]
[1720428349409,149.02078851,139.26,139.09,20.0]
[1720428349577,5.81078851,139.26,139.1,21.711]
[1720428349915,108.19825188,139.28,139.1,21.711]
[1720428350274,108.19825188,139.28,139.11,1.66289484]
[1720428350601,100.0,139.26,139.11,1.66289484]
[1720428350775,0.17,139.25,139.11,1.66289484]
[1720428351195,20.17,139.25,139.11,1.66289484]
[1720428351402,20.17,139.25,139.1,21.711]
[1720428351403,45.0,139.24,139.1,21.711]
[1720428351586,20.17,139.23,139.1,21.711]
[1720428352184,120.17,139.23,139.1,21.711]
[1720428352687,20.17,139.23,139.1,21.711]
[1720428352887,8.19825188,139.28,139.1,21.711]
[1720428353079,100.0,139.27,139.1,21.711]
[1720428353287,100.0,139.25,139.1,21.711]
[1720428353709,20.0,139.24,139.1,21.711]
[1720428354211,100.0,139.26,139.1,21.711]
[1720428354388,165.17,139.25,139.1,21.711]
[1720428354588,145.17,139.25,139.1,21.711]
[1720428354789,20.0,139.24,139.1,21.711]
[1720428355097,45.17,139.23,139.1,21.711]
[1720428355500,20.0,139.22,139.1,21.711]
[1720428355722,8.19825188,139.28,139.12,15.1505]
[1720428355890,0.1,139.29,139.13,26.5898]
[1720428356090,0.1,139.29,139.13,8.25245579]
[1720428356295,143.21,139.28,139.13,8.25245579]
[1720428356495,100.0,139.26,139.13,8.25245579]
[1720428357094,20.0,139.25,139.13,8.25245579]
[1720428357424,0.17,139.24,139.13,6.5898]
[1720428358633,14.61395188,139.29,139.13,6.5898]
[1720428358634,8.29825188,139.29,139.13,6.5898]
[1720428358921,0.1,139.29,139.14,17.6202363]
[1720428359102,0.1,139.29,139.15,6.3292]
[1720428359516,115.1,139.29,139.15,6.3292]
[1720428359899,100.0,139.27,139.15,6.3292]
[1720428360314,20.0,139.26,139.15,6.3292]
[1720428360508,45.17,139.25,139.15,6.3292]
[1720428360829,20.0,139.24,139.15,6.3292]
[1720428360999,0.17,139.23,139.15,6.3292]
[1720428361401,45.17,139.23,139.15,6.3292]
[1720428361631,0.17,139.23,139.15,6.3292]
[1720428362721,115.1,139.29,139.15,6.3292]
[1720428363339,100.1,139.29,139.15,6.3292]
[1720428363528,15.0,139.28,139.15,6.3292]
[1720428363723,0.1,139.29,139.15,6.3292]
[1720428364140,135.1,139.29,139.15,6.3292]
[1720428364340,45.17,139.28,139.15,6.3292]
[1720428364543,20.0,139.27,139.15,6.3292]
[1720428364755,0.17,139.26,139.15,6.3292]
[1720428365055,20.0,139.27,139.15,6.3292]
[1720428365243,0.1,139.29,139.15,6.3292]
[1720428365843,100.0,139.28,139.15,6.3292]
[1720428366359,100.0,139.25,139.15,6.3292]
[1720428366726,0.17,139.24,139.15,6.3292]
[1720428368242,20.0,139.27,139.15,6.3292]
[1720428368449,20.0,139.28,139.15,6.3292]
[1720428368622,0.1,139.29,139.15,6.3292]
[1720428369565,120.85379118,139.29,139.15,6.3292]
[1720428369871,40.9251287,139.28,139.15,6.3292]
[1720428370044,45.0,139.27,139.15,6.3292]
[1720428370227,20.17,139.26,139.15,6.3292]
[1720428370431,0.17,139.26,139.15,6.3292]
[1720428371238,65.92038169,139.27,139.15,6.3292]
[1720428371550,20.0,139.26,139.15,6.3292]
[1720428371738,45.17,139.25,139.15,6.3292]
[1720428371934,20.0,139.24,139.15,6.3292]
[1720428372139,0.17,139.23,139.15,6.3292]
[1720428372637,100.1,139.29,139.15,6.3292]
[1720428372838,20.0,139.28,139.15,6.3292]
[1720428373638,0.1,139.29,139.15,6.3292]
[1720428375847,45.27,139.29,139.15,6.3292]
[1720428376172,0.27,139.29,139.15,6.3292]
[1720428376465,0.27,139.29,139.16,15.473]
[1720428376659,0.1,139.29,139.17,6.287]
[1720428377665,100.1,139.29,139.17,6.287]
[1720428377853,20.17,139.28,139.17,6.287]
[1720428378264,0.17,139.28,139.17,6.287]
[1720428378647,20.17,139.28,139.17,6.287]
[1720428379571,0.1,139.29,139.17,6.287]
[1720428381148,0.1,139.29,139.18,16.4959]
[1720428381344,0.1,139.29,139.2,16.4959]
[1720428381570,20.74541312,139.35,139.22,15.4697]
[1720428381751,100.0,139.36,139.22,21.5107]
[1720428382273,100.0,139.36,139.23,6.041]
[1720428382478,100.1,139.39,139.24,15.4697]
[1720428382690,100.1,139.39,139.25,6.041]
[1720428382846,100.0,139.37,139.25,6.041]
[1720428383589,100.0,139.35,139.25,6.041]
[1720428383748,20.0,139.34,139.25,6.041]
[1720428384083,20.17,139.34,139.25,6.041]
[1720428384258,100.0,139.33,139.25,6.041]
[1720428384460,0.17,139.32,139.25,6.041]
[1720428384969,165.17,139.32,139.25,6.041]
[1720428385153,65.17,139.32,139.25,6.041]
[1720428385360,20.17,139.32,139.25,6.041]
[1720428385573,45.0,139.31,139.25,6.041]
[1720428385774,20.17,139.3,139.25,6.041]
[1720428385998,0.17,139.3,139.25,6.041]
[1720428386284,20.0,139.34,139.25,6.041]
[1720428386855,100.1,139.39,139.25,6.041]
[1720428386856,0.1,139.39,139.25,6.041]
[1720428388052,100.0,139.38,139.25,6.041]
[1720428388249,20.0,139.37,139.25,6.041]
[1720428388452,0.1,139.39,139.26,15.0988]
[1720428388679,0.1,139.39,139.25,6.041]
[1720428388680,4.92692515,139.42,139.31,6.186]
[1720428388908,100.1,139.49,139.32,6.1344]
[1720428389177,20.73432407,139.48,139.34,6.1344]
[1720428389379,7.1731,139.41,139.34,6.1344]
[1720428389591,0.1,139.49,139.37,6.4318]
[1720428389793,100.1,139.49,139.37,6.4318]
[1720428389954,0.1,139.49,139.37,6.4318]
[1720428390656,35.29,139.49,139.37,6.4318]
[1720428390872,7.1743,139.39,139.37,6.4318]
[1720428391579,35.19,139.45,139.37,6.4318]
[1720428391880,20.0,139.44,139.37,6.4318]
[1720428392053,100.0,139.48,139.37,6.4318]
[1720428392476,0.1,139.49,139.37,6.4318]
[1720428392477,35.19,139.47,139.37,6.4318]
[1720428392685,42.94,139.45,139.37,6.4318]
[1720428393385,0.17,139.44,139.37,6.4318]
[1720428393755,0.17,139.45,139.37,6.4318]
[1720428394194,100.0,139.43,139.37,6.4318]
[1720428394375,42.94,139.38,139.32,6.1502]
[1720428394586,85.88,139.33,139.27,6.1502]
[1720428394879,0.17,139.32,139.27,6.1502]
[1720428395083,100.0,139.36,139.27,6.1502]
[1720428395084,42.94,139.28,139.27,6.1502]
[1720428395387,43.11,139.28,139.27,6.1502]
[1720428395764,43.11,139.28,139.21,6.1502]
[1720428396090,0.17,139.27,139.21,6.1502]
[1720428396298,45.17,139.27,139.21,6.1502]
[1720428396457,42.94,139.24,139.21,6.1502]
[1720428396662,0.17,139.23,139.21,6.1502]
[1720428397568,45.17,139.23,139.21,6.1502]
[1720428397760,0.17,139.23,139.21,6.1502]
[1720428398285,42.94,139.3,139.21,6.1502]
[1720428398490,20.0,139.29,139.21,6.1502]
[1720428399698,45.17,139.28,139.21,6.1502]
[1720428399865,20.0,139.27,139.21,6.1502]
[1720428400063,0.17,139.26,139.21,6.1502]
[1720428400373,0.17,139.28,139.21,6.1502]
[1720428400582,42.94,139.26,139.21,6.1502]
[1720428400797,65.17,139.25,139.21,6.1502]
[1720428402003,45.17,139.25,139.21,6.1502]
[1720428402187,20.0,139.24,139.21,6.1502]
[1720428402399,0.17,139.23,139.21,6.1502]
[1720428403279,20.0,139.26,139.21,6.1502]
[1720428403470,120.0,139.29,139.21,6.1502]
[1720428404472,45.0,139.28,139.21,6.1502]
[1720428404798,20.17,139.27,139.21,6.1502]
[1720428405171,20.0,139.27,139.21,6.1502]
[1720428405376,42.94,139.3,139.21,6.1502]
[1720428405377,20.0,139.29,139.21,6.1502]
[1720428406186,120.0,139.29,139.21,6.1502]
[1720428406392,0.17,139.28,139.21,6.1502]
[1720428406789,42.94,139.3,139.21,6.1502]
[1720428406993,100.0,139.39,139.23,6.6575]
[1720428407312,42.94,139.38,139.23,8.31896161]
[1720428407817,42.94,139.38,139.25,6.6575]
[1720428409693,20.0,139.37,139.25,6.6575]
[1720428409891,42.94,139.34,139.25,6.6575]
[1720428410093,65.0,139.33,139.25,6.6575]
[1720428410312,100.17,139.32,139.25,6.6575]
[1720428410492,42.94,139.3,139.25,6.6575]
[1720428410698,20.17,139.29,139.25,6.6575]
[1720428411627,0.17,139.29,139.25,6.6575]
[1720428413291,20.0,139.32,139.25,6.6575]
[1720428413824,42.94,139.29,139.25,6.6575]
[1720428414027,20.0,139.28,139.25,6.6575]
[1720428414852,0.17,139.27,139.2,6.182]
[1720428415122,42.94,139.25,139.2,6.182]
[1720428415295,0.17,139.24,139.2,6.182]
[1720428416910,65.0,139.28,139.2,6.182]
[1720428417331,142.94,139.3,139.2,6.182]
[1720428417332,42.94,139.3,139.2,6.182]
[1720428417518,48.59859653,139.3,139.2,6.182]
[1720428418219,148.59859653,139.3,139.2,6.182]
[1720428418610,45.0,139.29,139.2,6.182]
[1720428418808,20.17,139.28,139.2,6.182]
[1720428419409,20.0,139.29,139.2,6.182]
[1720428420602,35.21,139.3,139.21,15.275]
[1720428421439,100.0,139.29,139.21,15.275]
[1720428421733,35.21,139.3,139.2,6.182]
[1720428421734,170.42,139.3,139.2,6.182]
[1720428422034,35.21,139.26,139.2,6.182]
[1720428422331,65.17,139.25,139.2,6.182]
[1720428422631,20.17,139.25,139.2,6.182]
[1720428422927,100.0,139.29,139.2,6.182]
[1720428423135,65.0,139.28,139.2,6.182]
[1720428423363,165.0,139.28,139.2,6.182]
[1720428423947,65.0,139.28,139.2,6.182]
[1720428424240,20.0,139.28,139.2,6.182]
[1720428425536,120.0,139.28,139.2,6.182]
[1720428425748,100.0,139.24,139.12,6.0617]
[1720428426029,45.0,139.23,139.12,6.0617]
[1720428426443,0.17,139.22,139.12,6.0617]
[1720428428821,135.21,139.29,139.13,6.3163]
[1720428429323,141.04565098,139.29,139.15,6.3163]
[1720428429726,100.0,139.27,139.15,6.3163]
[1720428429923,41.04565098,139.29,139.15,6.3163]
[1720428430249,100.0,139.27,139.15,6.3163]
[1720428430568,20.17,139.26,139.15,6.3163]
[1720428430859,20.17,139.25,139.15,6.3163]
[1720428431021,45.0,139.24,139.15,6.3163]
[1720428431226,0.17,139.23,139.15,6.3163]
[1720428433152,0.17,139.24,139.15,6.3163]
[1720428433329,0.17,139.25,139.15,6.3163]
[1720428433650,20.0,139.26,139.15,6.3163]
[1720428433830,120.0,139.27,139.15,6.3163]
[1720428434028,105.83565098,139.29,139.16,15.4277]
[1720428434251,5.83565098,139.29,139.17,6.5629]
[1720428434455,100.0,139.25,139.17,6.5629]
[1720428434748,135.21,139.25,139.17,6.5629]
[1720428434966,135.21,139.25,139.11,0.1]
[1720428434967,100.0,139.22,139.11,6.3532]
[1720428435252,35.21,139.21,139.11,6.3532]
[1720428435434,100.0,139.24,139.11,6.3532]
[1720428435635,65.17,139.23,139.11,6.3532]
[1720428436235,35.21,139.25,139.11,6.3532]
[1720428436236,40.99001873,139.25,139.11,6.3532]
[1720428436554,20.0,139.24,139.12,15.8106]
[1720428437635,45.0,139.23,139.12,15.8106]
[1720428437952,0.17,139.22,139.12,15.8106]
[1720428438336,20.0,139.24,139.12,15.8106]
[1720428438541,40.99001873,139.25,139.13,6.3242]
[1720428439149,100.0,139.29,139.13,6.3242]
[1720428439344,100.0,139.31,139.13,6.3242]
[1720428439548,100.0,139.31,139.17,6.5744]
[1720428440346,100.0,139.29,139.17,6.5744]
[1720428440854,40.96363642,139.3,139.17,6.5744]
[1720428441045,20.0,139.29,139.17,6.5744]
[1720428441540,40.96363642,139.3,139.17,6.5744]
[1720428442467,5.75363642,139.3,139.17,6.5744]
[1720428442768,135.21,139.33,139.17,6.5744]
[1720428442963,35.21,139.33,139.17,6.5744]
[1720428443165,40.81273447,139.33,139.19,6.0589]
[1720428443673,5.60273447,139.33,139.21,6.263]
[1720428443970,100.0,139.35,139.21,6.263]
[1720428444774,100.0,139.31,139.21,6.263]
[1720428445269,9.98484847,139.34,139.21,6.263]
[1720428445270,100.0,139.29,139.21,6.263]
[1720428445465,35.21,139.3,139.21,6.263]
[1720428445652,45.17,139.29,139.21,6.263]
[1720428445873,20.0,139.29,139.21,6.263]
[1720428446068,35.21,139.3,139.21,6.263]
[1720428446382,35.21,139.3,139.22,15.4468]
[1720428446584,5.62610599,139.35,139.23,6.3447]
[1720428446773,135.21,139.38,139.23,6.3447]
[1720428446973,21.87550273,139.41,139.23,6.3447]
[1720428446974,35.21,139.34,139.23,6.3447]
[1720428447363,135.21,139.34,139.23,6.3447]
[1720428447777,20.0,139.33,139.23,6.3447]
[1720428448094,45.0,139.32,139.23,6.3447]
[1720428448268,20.17,139.31,139.23,6.3447]
[1720428448472,45.0,139.3,139.23,6.3447]
[1720428448788,100.0,139.27,139.18,6.1694]
[1720428448994,65.17,139.26,139.18,6.1694]
[1720428449290,0.17,139.25,139.18,6.1694]
[1720428449491,135.38,139.29,139.18,6.1694]
[1720428449492,100.17,139.29,139.18,6.1694]
[1720428449788,45.0,139.28,139.18,6.1694]
[1720428450088,0.17,139.27,139.18,6.1694]
[1720428450500,35.21,139.26,139.18,6.1694]
[1720428450670,45.17,139.25,139.18,6.1694]
[1720428451462,35.21,139.22,139.18,6.1694]
[1720428451689,0.17,139.21,139.12,1.22729432]
[1720428451864,0.17,139.21,139.11,15.5638]
[1720428454782,0.17,139.21,139.12,6.1662]
[1720428456593,45.17,139.21,139.12,6.1662]
[1720428457112,106.87550273,139.32,139.14,6.1662]
[1720428457304,100.0,139.3,139.14,6.1662]
[1720428457592,35.21,139.25,139.14,6.1662]
[1720428457793,100.0,139.29,139.14,6.1662]
[1720428458177,20.0,139.28,139.14,6.1662]
[1720428458380,35.21,139.26,139.14,6.1662]
[1720428458579,0.17,139.25,139.14,6.1662]
[1720428458794,35.21,139.24,139.14,6.1662]
[1720428459080,45.0,139.23,139.14,6.1662]
[1720428459300,0.17,139.22,139.14,6.1662]
[1720428460014,0.17,139.23,139.14,6.1662]
[1720428460700,20.17,139.23,139.14,6.1662]
[1720428461095,0.17,139.23,139.14,6.1662]
[1720428461717,5.74675288,139.24,139.14,6.1662]
[1720428462025,100.0,139.29,139.14,6.1662]
[1720428462596,105.84252253,139.29,139.14,6.1662]
[1720428462925,35.21,139.26,139.14,6.1662]
[1720428463997,45.0,139.25,139.14,6.1662]
[1720428464198,20.17,139.24,139.14,6.1662]
[1720428464398,45.0,139.23,139.14,6.1662]
[1720428464711,55.38,139.22,139.14,6.1662]
[1720428464907,45.0,139.21,139.14,6.1662]
[1720428465226,0.17,139.2,139.14,6.1662]
[1720428467608,5.96273574,139.2,139.14,6.1662]
[1720428467800,0.17,139.2,139.14,6.1662]
[1720428468902,45.0,139.21,139.14,6.1662]
[1720428468903,5.66080889,139.21,139.14,6.1662]
[1720428469106,100.0,139.23,139.14,6.1662]
[1720428469613,105.70210773,139.23,139.14,6.1662]
[1720428469817,35.21,139.22,139.14,6.1662]
[1720428470732,0.17,139.21,139.14,6.1662]
[1720428470907,45.17,139.21,139.14,6.1662]
[1720428471428,5.70210773,139.23,139.14,6.1662]
[1720428471635,6.3705,139.34,139.16,6.5262]
[1720428471636,100.0,139.32,139.16,6.5262]
[1720428471833,35.21,139.27,139.16,6.5262]
[1720428472012,100.0,139.24,139.16,6.5262]
[1720428472222,35.21,139.27,139.16,6.5262]
[1720428472538,100.0,139.25,139.16,6.5262]
[1720428472740,135.21,139.27,139.16,6.5262]
[1720428472910,20.0,139.26,139.16,6.5262]
[1720428473108,45.0,139.25,139.16,6.5262]
[1720428473311,20.0,139.24,139.16,6.5262]
[1720428473526,45.0,139.23,139.16,6.5262]
[1720428473725,20.0,139.24,139.16,6.5262]
[1720428473913,20.0,139.26,139.16,6.5262]
[1720428474345,100.0,139.24,139.16,6.5262]
[1720428474631,35.21,139.23,139.16,6.5262]
[1720428474841,55.21,139.23,139.16,6.5262]
[1720428475021,0.17,139.22,139.16,6.5262]
[1720428475223,45.17,139.22,139.16,6.5262]
[1720428475742,55.21,139.23,139.16,6.5262]
[1720428477237,45.17,139.22,139.16,6.5262]
[1720428481637,55.21,139.23,139.16,6.5262]
[1720428481955,100.0,139.29,139.16,6.5262]
[1720428482168,100.0,139.32,139.16,6.5262]
[1720428482455,35.21,139.35,139.18,6.556]
[1720428482628,100.0,139.33,139.18,6.556]
[1720428483258,100.0,139.34,139.18,6.556]
[1720428483480,35.21,139.35,139.18,6.556]
[1720428483654,100.0,139.36,139.18,6.556]
[1720428483849,100.0,139.34,139.18,6.556]
[1720428484069,35.21,139.37,139.18,6.556]
[1720428484070,135.21,139.32,139.18,6.556]
[1720428484453,100.0,139.3,139.18,6.556]
[1720428484965,20.0,139.29,139.18,6.556]
[1720428485165,45.0,139.28,139.18,6.556]
[1720428485492,20.17,139.27,139.18,6.556]
[1720428485654,45.0,139.26,139.18,6.556]
[1720428485974,0.17,139.25,139.18,6.556]
[1720428486176,20.17,139.25,139.18,6.556]
[1720428486401,23.31644959,139.33,139.18,6.556]
[1720428486402,100.0,139.3,139.18,6.556]
[1720428486681,5.75494235,139.31,139.18,6.556]
[1720428487200,35.21,139.33,139.18,6.556]
[1720428487769,100.0,139.32,139.18,6.556]
[1720428488679,40.8875216,139.33,139.18,6.556]
[1720428488883,135.21,139.29,139.18,6.556]
[1720428489093,0.17,139.28,139.18,6.556]
[1720428489759,20.0,139.31,139.18,6.556]
[1720428489961,7.18371748,139.37,139.2,6.5147]
[1720428489962,35.21,139.36,139.2,6.5147]
[1720428490158,35.21,139.36,139.15,15.0]
[1720428490159,7.18371748,139.37,139.21,15.254]
[1720428490359,16.3083,139.44,139.25,6.455]
[1720428490567,16.3083,139.44,139.28,6.455]
[1720428490568,35.21,139.42,139.28,6.455]
[1720428491001,135.21,139.42,139.28,6.455]
[1720428491677,20.0,139.41,139.28,6.455]
[1720428491881,35.21,139.37,139.28,6.455]
[1720428492210,20.0,139.36,139.28,6.455]
[1720428492793,120.0,139.39,139.28,6.455]
[1720428492990,45.0,139.38,139.28,6.455]
[1720428493195,20.0,139.37,139.28,6.455]
[1720428493403,20.0,139.39,139.28,6.455]
[1720428494214,5.71544683,139.44,139.29,6.2236]
[1720428494511,100.0,139.44,139.29,6.2236]
[1720428494768,100.0,139.44,139.22,7.75093888]
[1720428494769,35.21,139.45,139.31,6.5091]
[1720428495899,35.21,139.45,139.31,6.3752]
[1720428496390,100.0,139.44,139.31,6.3752]
[1720428497004,20.0,139.43,139.31,6.3752]
[1720428497191,35.21,139.41,139.31,6.3752]
[1720428497400,20.0,139.4,139.31,6.3752]
[1720428497608,55.21,139.43,139.31,6.3752]
[1720428497793,0.17,139.42,139.31,6.3752]
[1720428498514,55.21,139.43,139.31,6.3752]
[1720428498808,35.21,139.43,139.33,6.558]
[1720428499017,35.21,139.43,139.34,15.7998]
[1720428500388,0.17,139.42,139.34,15.7998]
[1720428500589,35.21,139.43,139.34,15.7998]
[1720428500810,5.80169581,139.46,139.35,6.276]
[1720428501017,35.21,139.47,139.35,6.276]
[1720428501210,34.71,139.47,139.35,6.276]
[1720428501511,134.71,139.47,139.35,6.276]
[1720428501720,100.0,139.45,139.35,6.276]
[1720428502211,20.17,139.44,139.35,6.276]
[1720428502425,20.0,139.46,139.35,6.276]
[1720428502633,120.0,139.46,139.35,6.276]
[1720428503336,20.0,139.46,139.35,6.276]
[1720428504427,120.0,139.46,139.35,6.276]
[1720428505024,20.0,139.46,139.35,6.276]
[1720428505199,35.21,139.43,139.35,6.276]
[1720428505633,35.21,139.43,139.34,15.7998]
[1720428505634,0.1,139.49,139.37,6.1129]
[1720428506508,0.1,139.49,139.39,6.5035]
[1720428506730,0.1,139.49,139.4,10.1445]
[1720428507506,0.1,139.49,139.41,6.3584]
[1720428509016,35.31,139.49,139.41,6.3584]
[1720428509229,35.21,139.44,139.36,6.6129]
[1720428509734,34.71,139.44,139.36,6.6129]
[1720428509933,20.0,139.43,139.36,6.6129]
[1720428510148,0.17,139.42,139.36,6.6129]
[1720428510510,35.21,139.4,139.36,6.6129]
[1720428510711,20.17,139.39,139.36,6.6129]
[1720428510910,100.0,139.43,139.36,6.6129]
[1720428510911,100.0,139.53,139.36,6.6129]
[1720428511109,100.0,139.53,139.37,10.1504]
[1720428511313,35.21,139.52,139.38,6.4783]
[1720428511529,35.31,139.49,139.38,6.4783]
[1720428512230,35.31,139.49,139.38,7.91291552]
[1720428512732,20.0,139.48,139.38,7.91291552]
[1720428512934,20.17,139.48,139.38,7.91291552]
[1720428513112,20.17,139.48,139.38,6.4783]
[1720428513718,20.0,139.48,139.38,6.4783]
[1720428514311,0.1,139.49,139.38,6.4783]
[1720428514517,0.1,139.49,139.4,6.5371]
[1720428514830,0.1,139.49,139.42,6.5371]
[1720428515025,0.1,139.49,139.43,45.0]
[1720428515206,35.21,139.55,139.44,6.5371]
[1720428515407,6.69753356,139.56,139.44,6.5371]
[1720428515609,0.8567655,139.56,139.45,6.5371]
[1720428516044,0.8567655,139.56,139.46,45.0]
[1720428516222,0.8567655,139.56,139.4,1.65943544]
[1720428516223,0.04261087,139.61,139.47,35.0]
[1720428516425,100.1,139.69,139.47,35.0]
[1720428516426,0.1,139.69,139.51,15.0]
[1720428516619,0.1,139.69,139.56,15.0]
[1720428516943,0.1,139.69,139.57,62.49864969]
[1720428517236,0.1,139.69,139.48,45.0]
[1720428517237,0.1,139.69,139.58,45.0]
[1720428517443,0.1,139.69,139.6,10.0504]
[1720428517748,0.1,139.69,139.61,65.0]
[1720428517936,0.1,139.79,139.62,6.2773]
[1720428518114,35.21,139.77,139.63,45.39369474]
[1720428518315,35.21,139.77,139.62,6.2773]
[1720428518522,15.0,139.78,139.62,6.2773]
[1720428518734,20.6227,139.74,139.58,6.4466]
[1720428518934,35.21,139.7,139.58,6.4466]
[1720428519232,35.21,139.7,139.51,9.1937]
[1720428519233,35.21,139.65,139.54,6.2924]
[1720428519737,20.0,139.64,139.54,6.2924]
[1720428520330,0.17,139.63,139.54,6.2924]